[Event "*** Titled Tuesday Blitz"]
[Site "Chess.com"]
[Date "2021.03.02"]
[Round "5"]
[White "NicoChasin"]
[Black "Mazetovic"]
[Result "1-0"]
[WhiteElo "2566"]
[BlackElo "2714"]
[TimeControl "180+1"]
[EndTime "10:54:44 PST"]
[Termination "NicoChasin won by resignation"]

1. d4 {[%clk 0:02:55.6]} 1... Nf6 {[%clk 0:02:59.6]} 2. c4 {[%clk 0:02:54.1]}
2... g6 {[%clk 0:02:59.1]} 3. Nc3 {[%clk 0:02:54.3]} 3... Bg7 {[%clk 0:02:59]}
4. e4 {[%clk 0:02:54.5]} 4... d6 {[%clk 0:02:59.2]} 5. Nf3 {[%clk 0:02:53]} 5...
O-O {[%clk 0:02:58.8]} 6. Be2 {[%clk 0:02:53.7]} 6... Na6 {[%clk 0:02:57.8]} 7.
O-O {[%clk 0:02:52.5]} 7... e5 {[%clk 0:02:57.6]} 8. Be3 {[%clk 0:02:53.1]} 8...
c6 {[%clk 0:02:51.3]} 9. d5 {[%clk 0:02:52.1]} 9... Ng4 {[%clk 0:02:50.8]} 10.
Bg5 {[%clk 0:02:51.8]} 10... f6 {[%clk 0:02:51.2]} 11. Bh4 {[%clk 0:02:51.7]}
11... c5 {[%clk 0:02:51.7]} 12. Ne1 {[%clk 0:02:48.5]} 12... h5 {[%clk
0:02:50.9]} 13. Nc2 {[%clk 0:02:44.9]} 13... Nh6 {[%clk 0:02:48.2]} 14. f3
{[%clk 0:02:44.2]} 14... Nf7 {[%clk 0:02:47.5]} 15. a3 {[%clk 0:02:41.2]} 15...
Bh6 {[%clk 0:02:46.7]} 16. b4 {[%clk 0:02:40.1]} 16... b6 {[%clk 0:02:45.2]} 17.
Kh1 {[%clk 0:02:29.8]} 17... Bd7 {[%clk 0:02:40.3]} 18. Rb1 {[%clk 0:02:21.6]}
18... Bg5 {[%clk 0:02:39.1]} 19. Bxg5 {[%clk 0:02:19.4]} 19... Nxg5 {[%clk
0:02:33.2]} 20. f4 {[%clk 0:02:18.9]} 20... exf4 {[%clk 0:02:30.4]} 21. Rxf4
{[%clk 0:02:19.8]} 21... Nf7 {[%clk 0:02:30.5]} 22. Qf1 {[%clk 0:02:17.1]} 22...
Ne5 {[%clk 0:02:29.7]} 23. h4 {[%clk 0:02:12.4]} 23... Kg7 {[%clk 0:02:28.1]}
24. Ne3 {[%clk 0:02:11.7]} 24... Qe7 {[%clk 0:02:22.7]} 25. Qf2 {[%clk
0:02:05.2]} 25... Rae8 {[%clk 0:01:54.9]} 26. Rf1 {[%clk 0:02:04.4]} 26... Rf7
{[%clk 0:01:53.5]} 27. Qg3 {[%clk 0:02:04]} 27... Kh7 {[%clk 0:01:53]} 28. Nb5
{[%clk 0:01:39.6]} 28... Rg8 {[%clk 0:01:29.2]} 29. Nxa7 {[%clk 0:01:33.2]}
29... cxb4 {[%clk 0:01:29.1]} 30. c5 {[%clk 0:01:29]} 30... Nxc5 {[%clk
0:01:18.6]} 31. axb4 {[%clk 0:01:28.3]} 31... Nb3 {[%clk 0:01:10.9]} 32. Nc6
{[%clk 0:01:21.1]} 32... Nxc6 {[%clk 0:01:09.7]} 33. dxc6 {[%clk 0:01:21.6]}
33... Bxc6 {[%clk 0:01:09.3]} 34. Bc4 {[%clk 0:01:15.1]} 34... Nd2 {[%clk
0:01:05.2]} 35. Bxf7 {[%clk 0:01:14.1]} 35... Qxf7 {[%clk 0:01:01.6]} 36. Rxf6
{[%clk 0:01:14.2]} 36... Qe8 {[%clk 0:00:58]} 37. Rf7+ {[%clk 0:01:11.7]} 37...
Rg7 {[%clk 0:00:57.5]} 38. Rxg7+ {[%clk 0:01:11.2]} 38... Kxg7 {[%clk
0:00:57.4]} 39. Nf5+ {[%clk 0:01:09.7]} 39... Kh7 {[%clk 0:00:56.5]} 40. Qc3
{[%clk 0:00:53.3]} 40... gxf5 {[%clk 0:00:56.2]} 41. Qxd2 {[%clk 0:00:53.2]}
41... Qxe4 {[%clk 0:00:56.2]} 42. Rf4 {[%clk 0:00:48.6]} 42... Qe5 {[%clk
0:00:52.1]} 43. Kh2 {[%clk 0:00:45.5]} 43... Be4 {[%clk 0:00:51.7]} 44. Qf2
{[%clk 0:00:41.2]} 44... d5 {[%clk 0:00:50.7]} 45. Qg3 {[%clk 0:00:39.3]} 45...
Qf6 {[%clk 0:00:50.7]} 46. Rf1 {[%clk 0:00:29.6]} 46... d4 {[%clk 0:00:50.5]}
47. Rc1 {[%clk 0:00:29.2]} 47... Qg7 {[%clk 0:00:49.1]} 48. Rc7 {[%clk
0:00:28.6]} 1-0

[Event "*** Titled Tuesday Blitz"]
[Site "Chess.com"]
[Date "2021.03.02"]
[Round "5"]
[White "Gurvich_Vitaly"]
[Black "ShimanovAlex"]
[Result "0-1"]
[WhiteElo "2586"]
[BlackElo "2807"]
[TimeControl "180+1"]
[EndTime "10:54:46 PST"]
[Termination "ShimanovAlex won by resignation"]

1. e4 {[%clk 0:03:00.9]} 1... b6 {[%clk 0:02:56.8]} 2. d4 {[%clk 0:02:50.9]}
2... Bb7 {[%clk 0:02:56.1]} 3. Bd3 {[%clk 0:02:49.8]} 3... e6 {[%clk 0:02:56.3]}
4. Nf3 {[%clk 0:02:44.6]} 4... c5 {[%clk 0:02:56.3]} 5. Nc3 {[%clk 0:02:41.5]}
5... Nf6 {[%clk 0:02:53.6]} 6. Qe2 {[%clk 0:02:30]} 6... cxd4 {[%clk 0:02:40.8]}
7. Nxd4 {[%clk 0:02:25.8]} 7... Bc5 {[%clk 0:02:38]} 8. Nb3 {[%clk 0:02:08.3]}
8... Be7 {[%clk 0:02:37.8]} 9. O-O {[%clk 0:02:07.4]} 9... d6 {[%clk 0:02:37.1]}
10. f4 {[%clk 0:02:06.1]} 10... O-O {[%clk 0:02:36.2]} 11. Rf3 {[%clk
0:01:39.1]} 11... Nbd7 {[%clk 0:02:26.7]} 12. Rh3 {[%clk 0:01:38.6]} 12... g6
{[%clk 0:02:26.7]} 13. Be3 {[%clk 0:01:35.1]} 13... d5 {[%clk 0:02:23.4]} 14. e5
{[%clk 0:01:34.8]} 14... Ne4 {[%clk 0:02:23.7]} 15. Nxe4 {[%clk 0:01:18.2]}
15... dxe4 {[%clk 0:02:24.6]} 16. Ba6 {[%clk 0:01:17]} 16... Bxa6 {[%clk
0:02:20.2]} 17. Qxa6 {[%clk 0:01:17.9]} 17... Qc7 {[%clk 0:02:20.9]} 18. c3
{[%clk 0:01:14.9]} 18... Nc5 {[%clk 0:02:12.4]} 19. Qc4 {[%clk 0:01:12.5]} 19...
Rac8 {[%clk 0:02:11.7]} 20. Nxc5 {[%clk 0:01:05]} 20... Bxc5 {[%clk 0:02:12.2]}
21. Bxc5 {[%clk 0:01:04.4]} 21... Qxc5+ {[%clk 0:02:09.2]} 22. Qxc5 {[%clk
0:01:04.5]} 22... Rxc5 {[%clk 0:02:09.8]} 23. Rd1 {[%clk 0:01:02.5]} 23... Rb5
{[%clk 0:01:54.4]} 24. b3 {[%clk 0:00:55.3]} 24... Rd5 {[%clk 0:01:50]} 25. Rxd5
{[%clk 0:00:35.2]} 25... exd5 {[%clk 0:01:50.9]} 26. Kf2 {[%clk 0:00:36]} 26...
Rc8 {[%clk 0:01:50.5]} 27. Ke2 {[%clk 0:00:34.9]} 27... h5 {[%clk 0:01:46]} 28.
Kd2 {[%clk 0:00:34.1]} 28... b5 {[%clk 0:01:44.2]} 29. Re3 {[%clk 0:00:29.9]}
29... Kf8 {[%clk 0:01:43.3]} 30. g3 {[%clk 0:00:21.7]} 30... Ke7 {[%clk
0:01:42.6]} 31. h3 {[%clk 0:00:20.2]} 31... Ke6 {[%clk 0:01:42.9]} 32. Re1
{[%clk 0:00:20.2]} 32... Kf5 {[%clk 0:01:39.5]} 33. Rf1 {[%clk 0:00:20]} 33...
a5 {[%clk 0:01:37.8]} 34. a3 {[%clk 0:00:19.8]} 34... Rc7 {[%clk 0:01:35.6]} 35.
Rf2 {[%clk 0:00:16.9]} 35... e3+ {[%clk 0:01:35]} 36. Kxe3 {[%clk 0:00:16.7]}
36... Rxc3+ {[%clk 0:01:35.7]} 37. Kd4 {[%clk 0:00:17]} 37... Rxb3 {[%clk
0:01:31.8]} 38. g4+ {[%clk 0:00:16]} 38... hxg4 {[%clk 0:01:31.6]} 39. hxg4+
{[%clk 0:00:16.9]} 39... Kxg4 {[%clk 0:01:31.7]} 40. Kxd5 {[%clk 0:00:16.9]}
40... Rxa3 {[%clk 0:01:29.2]} 41. Kd6 {[%clk 0:00:13]} 41... Rc3 {[%clk
0:01:19.8]} 42. Ra2 {[%clk 0:00:10.9]} 42... a4 {[%clk 0:01:19.7]} 43. Ke7
{[%clk 0:00:07.2]} 43... Rc7+ {[%clk 0:01:18.3]} 44. Kf6 {[%clk 0:00:07.4]}
44... Kxf4 {[%clk 0:01:12.7]} 45. Re2 {[%clk 0:00:04.9]} 45... a3 {[%clk
0:01:09.2]} 0-1

[Event "*** Titled Tuesday Blitz"]
[Site "Chess.com"]
[Date "2021.03.02"]
[Round "5"]
[White "Schack-Hugo"]
[Black "mjray79"]
[Result "0-1"]
[WhiteElo "2229"]
[BlackElo "2476"]
[TimeControl "180+1"]
[EndTime "10:54:47 PST"]
[Termination "mjray79 won on time"]

1. e4 {[%clk 0:03:00.9]} 1... e5 {[%clk 0:02:59.3]} 2. Nf3 {[%clk 0:02:55.9]}
2... Nc6 {[%clk 0:02:58.9]} 3. Bc4 {[%clk 0:02:55.5]} 3... Bc5 {[%clk
0:02:58.6]} 4. c3 {[%clk 0:02:55.2]} 4... Nf6 {[%clk 0:02:58.1]} 5. d3 {[%clk
0:02:55.4]} 5... O-O {[%clk 0:02:57.7]} 6. Bg5 {[%clk 0:02:50.8]} 6... Be7
{[%clk 0:02:53.6]} 7. O-O {[%clk 0:02:31.8]} 7... d6 {[%clk 0:02:47.7]} 8. Nbd2
{[%clk 0:02:21]} 8... Be6 {[%clk 0:02:47.5]} 9. Re1 {[%clk 0:01:57.2]} 9... Nd7
{[%clk 0:02:31.8]} 10. Bxe7 {[%clk 0:01:49.5]} 10... Qxe7 {[%clk 0:02:28.6]} 11.
d4 {[%clk 0:01:47.9]} 11... Bxc4 {[%clk 0:02:16.4]} 12. Nxc4 {[%clk 0:01:48.8]}
12... Qf6 {[%clk 0:02:13.9]} 13. Ne3 {[%clk 0:01:22.2]} 13... Rae8 {[%clk
0:01:58.2]} 14. Nd5 {[%clk 0:01:18.4]} 14... Qd8 {[%clk 0:01:57.9]} 15. Qb3
{[%clk 0:00:45.3]} 15... exd4 {[%clk 0:01:42.2]} 16. cxd4 {[%clk 0:00:42.3]}
16... Nb6 {[%clk 0:01:39.9]} 17. Nxb6 {[%clk 0:00:33.8]} 17... axb6 {[%clk
0:01:40.8]} 18. Qc3 {[%clk 0:00:16.7]} 18... d5 {[%clk 0:01:31.5]} 19. e5 {[%clk
0:00:16.2]} 19... Re6 {[%clk 0:01:30.7]} 20. Qd2 {[%clk 0:00:14]} 20... Rg6
{[%clk 0:01:28.7]} 21. Rad1 {[%clk 0:00:13.5]} 21... Qd7 {[%clk 0:01:23.7]} 22.
Kh1 {[%clk 0:00:10.6]} 22... Re8 {[%clk 0:01:18.7]} 23. h3 {[%clk 0:00:10.3]}
23... Ne7 {[%clk 0:01:09.4]} 24. Qf4 {[%clk 0:00:09.8]} 24... Nf5 {[%clk
0:01:07.3]} 25. g4 {[%clk 0:00:07.1]} 25... Ne7 {[%clk 0:01:01.2]} 26. Nh4
{[%clk 0:00:04.6]} 26... Rh6 {[%clk 0:00:57.5]} 27. Nf5 {[%clk 0:00:03.3]} 27...
Rxh3+ {[%clk 0:00:41.3]} 28. Kg2 {[%clk 0:00:03.1]} 28... Ng6 {[%clk 0:00:41.5]}
29. Qd2 {[%clk 0:00:01.2]} 29... Nh4+ {[%clk 0:00:34.4]} 0-1

[Event "*** Titled Tuesday Blitz"]
[Site "Chess.com"]
[Date "2021.03.02"]
[Round "5"]
[White "ChristopherYoo"]
[Black "Jungle_Jaguar"]
[Result "1-0"]
[WhiteElo "2900"]
[BlackElo "2611"]
[TimeControl "180+1"]
[EndTime "10:54:50 PST"]
[Termination "ChristopherYoo won by resignation"]

1. d4 {[%clk 0:03:00.9]} 1... Nf6 {[%clk 0:02:58.2]} 2. Nf3 {[%clk 0:03:00.7]}
2... d5 {[%clk 0:02:57.8]} 3. c4 {[%clk 0:03:00.8]} 3... c6 {[%clk 0:02:58.2]}
4. e3 {[%clk 0:02:59.5]} 4... e6 {[%clk 0:02:56.2]} 5. Bd3 {[%clk 0:02:59]} 5...
Bd6 {[%clk 0:02:46.6]} 6. b3 {[%clk 0:02:58.5]} 6... O-O {[%clk 0:02:46.2]} 7.
O-O {[%clk 0:02:58]} 7... Nbd7 {[%clk 0:02:46.2]} 8. Bb2 {[%clk 0:02:58.1]} 8...
b6 {[%clk 0:02:42.3]} 9. Nbd2 {[%clk 0:02:57.9]} 9... Bb7 {[%clk 0:02:38.6]} 10.
Qe2 {[%clk 0:02:58.1]} 10... Re8 {[%clk 0:02:37.9]} 11. Rfd1 {[%clk 0:02:47.9]}
11... Qc7 {[%clk 0:02:34]} 12. Rac1 {[%clk 0:02:44.8]} 12... e5 {[%clk
0:02:29.9]} 13. dxe5 {[%clk 0:02:36.9]} 13... Nxe5 {[%clk 0:02:29.8]} 14. Nxe5
{[%clk 0:02:34]} 14... Bxe5 {[%clk 0:02:29.9]} 15. Bxe5 {[%clk 0:02:34.9]} 15...
Qxe5 {[%clk 0:02:30.8]} 16. Nf3 {[%clk 0:02:34.1]} 16... Qe7 {[%clk 0:02:29.6]}
17. cxd5 {[%clk 0:02:14.7]} 17... Nxd5 {[%clk 0:02:27.5]} 18. Bc4 {[%clk
0:02:14.9]} 18... Rad8 {[%clk 0:02:20.5]} 19. Bxd5 {[%clk 0:02:13.8]} 19... Rxd5
{[%clk 0:02:19.8]} 20. Rxd5 {[%clk 0:02:13.5]} 20... cxd5 {[%clk 0:02:20.5]} 21.
Nd4 {[%clk 0:02:14]} 21... g6 {[%clk 0:02:17.3]} 22. h3 {[%clk 0:02:08.8]} 22...
Rc8 {[%clk 0:02:14.8]} 23. Rxc8+ {[%clk 0:02:07.5]} 23... Bxc8 {[%clk
0:02:15.7]} 24. Qb5 {[%clk 0:02:04.9]} 24... Qd7 {[%clk 0:02:12.8]} 25. Qc6
{[%clk 0:01:54.8]} 25... Kg7 {[%clk 0:02:03.6]} 26. Qc3 {[%clk 0:01:53.5]} 26...
Kg8 {[%clk 0:02:00.1]} 27. Nf3 {[%clk 0:01:43.2]} 27... Qd8 {[%clk 0:01:45.3]}
28. Ne5 {[%clk 0:01:40.7]} 28... Be6 {[%clk 0:01:43.7]} 29. a4 {[%clk
0:01:27.5]} 29... Qd6 {[%clk 0:01:43.2]} 30. b4 {[%clk 0:01:24.3]} 30... h5
{[%clk 0:01:39.7]} 31. a5 {[%clk 0:01:18.6]} 31... bxa5 {[%clk 0:01:27.4]} 32.
bxa5 {[%clk 0:01:19.5]} 32... Qb8 {[%clk 0:01:28]} 33. Nc6 {[%clk 0:01:13.2]}
33... Qb1+ {[%clk 0:01:08.9]} 34. Kh2 {[%clk 0:01:12.1]} 34... Qb5 {[%clk
0:01:03.2]} 35. Ne7+ {[%clk 0:00:40.1]} 35... Kf8 {[%clk 0:01:02.2]} 36. Qf6
{[%clk 0:00:35.4]} 36... Qb8+ {[%clk 0:00:40.2]} 37. f4 {[%clk 0:00:34.6]} 37...
Ke8 {[%clk 0:00:28.4]} 38. Qh8+ {[%clk 0:00:33.1]} 38... Kxe7 {[%clk 0:00:24.5]}
39. Qxb8 {[%clk 0:00:34]} 1-0

[Event "*** Titled Tuesday Blitz"]
[Site "Chess.com"]
[Date "2021.03.02"]
[Round "5"]
[White "eduardoperalta"]
[Black "SHIVACalypso"]
[Result "1-0"]
[WhiteElo "2539"]
[BlackElo "2349"]
[TimeControl "180+1"]
[EndTime "10:54:52 PST"]
[Termination "eduardoperalta won by resignation"]

1. d4 {[%clk 0:03:00.9]} 1... e6 {[%clk 0:02:42.8]} 2. Nf3 {[%clk 0:02:57.8]}
2... Nf6 {[%clk 0:02:42.1]} 3. c4 {[%clk 0:02:54.6]} 3... d5 {[%clk 0:02:41.7]}
4. Nc3 {[%clk 0:02:53.6]} 4... Bb4 {[%clk 0:02:40.7]} 5. e3 {[%clk 0:02:52.9]}
5... O-O {[%clk 0:02:39.7]} 6. Bd3 {[%clk 0:02:52.1]} 6... c5 {[%clk 0:02:37.7]}
7. O-O {[%clk 0:02:51]} 7... cxd4 {[%clk 0:02:37.5]} 8. exd4 {[%clk 0:02:50.7]}
8... dxc4 {[%clk 0:02:37.8]} 9. Bxc4 {[%clk 0:02:51.6]} 9... b6 {[%clk
0:02:36.8]} 10. a3 {[%clk 0:02:50.7]} 10... Be7 {[%clk 0:02:30.2]} 11. Re1
{[%clk 0:02:46.8]} 11... Bb7 {[%clk 0:02:30]} 12. Bd3 {[%clk 0:02:44.9]} 12...
Nbd7 {[%clk 0:02:25.3]} 13. Bc2 {[%clk 0:02:41.5]} 13... Rc8 {[%clk 0:02:16.4]}
14. Qd3 {[%clk 0:02:37.8]} 14... Qc7 {[%clk 0:02:02.5]} 15. Bg5 {[%clk
0:02:34.5]} 15... Rfd8 {[%clk 0:01:56.3]} 16. Rad1 {[%clk 0:02:13.7]} 16... h6
{[%clk 0:01:53.6]} 17. Bh4 {[%clk 0:02:11]} 17... Qc4 {[%clk 0:01:38.8]} 18.
Qxc4 {[%clk 0:01:35.2]} 18... Rxc4 {[%clk 0:01:39.7]} 19. Bb3 {[%clk 0:01:35.6]}
19... Rcc8 {[%clk 0:01:34.6]} 20. d5 {[%clk 0:01:27.3]} 20... Nf8 {[%clk
0:01:02.9]} 21. dxe6 {[%clk 0:01:22.3]} 21... Nxe6 {[%clk 0:00:57.8]} 22. Rxd8+
{[%clk 0:01:15.2]} 22... Rxd8 {[%clk 0:00:55.3]} 23. Ne5 {[%clk 0:01:13.4]}
23... Rd2 {[%clk 0:00:37.5]} 24. Nxf7 {[%clk 0:01:10.4]} 24... Kxf7 {[%clk
0:00:37.4]} 25. Bxe6+ {[%clk 0:01:09.3]} 25... Kf8 {[%clk 0:00:36.9]} 26. b4
{[%clk 0:01:08.2]} 26... Rd3 {[%clk 0:00:31]} 27. Nb5 {[%clk 0:01:04.7]} 27...
a6 {[%clk 0:00:29]} 28. Nc7 {[%clk 0:01:03.2]} 28... Rxa3 {[%clk 0:00:27]} 29.
h3 {[%clk 0:01:01.4]} 29... Bxb4 {[%clk 0:00:26.5]} 30. Rb1 {[%clk 0:00:55.9]}
30... Bc5 {[%clk 0:00:25.8]} 31. Bc4 {[%clk 0:00:52.9]} 31... a5 {[%clk
0:00:18.4]} 32. Ne6+ {[%clk 0:00:52]} 32... Ke7 {[%clk 0:00:14.6]} 33. Nxc5
{[%clk 0:00:52.1]} 33... bxc5 {[%clk 0:00:14.9]} 34. Rxb7+ {[%clk 0:00:52]}
34... Kd6 {[%clk 0:00:15.4]} 35. Bg3+ {[%clk 0:00:51.2]} 35... Kc6 {[%clk
0:00:14.6]} 36. Rxg7 {[%clk 0:00:51.3]} 36... Ne4 {[%clk 0:00:15.3]} 37. Rg6+
{[%clk 0:00:51]} 37... Kd7 {[%clk 0:00:15.6]} 38. Bb5+ {[%clk 0:00:49]} 38...
Ke7 {[%clk 0:00:15.2]} 39. Bh4+ {[%clk 0:00:49.2]} 39... Kf7 {[%clk 0:00:15]}
40. Rxh6 {[%clk 0:00:48.1]} 40... Rb3 {[%clk 0:00:15.4]} 41. Bc4+ {[%clk
0:00:47.7]} 1-0

[Event "*** Titled Tuesday Blitz"]
[Site "Chess.com"]
[Date "2021.03.02"]
[Round "5"]
[White "Skatchkov_V"]
[Black "Zhigalko_Sergei"]
[Result "0-1"]
[WhiteElo "2612"]
[BlackElo "2906"]
[TimeControl "180+1"]
[EndTime "10:54:53 PST"]
[Termination "Zhigalko_Sergei won on time"]

1. d4 {[%clk 0:03:00.3]} 1... Nf6 {[%clk 0:02:57.3]} 2. c4 {[%clk 0:03:00.8]}
2... e6 {[%clk 0:02:57.7]} 3. Nf3 {[%clk 0:03:01.5]} 3... b6 {[%clk 0:02:57.8]}
4. g3 {[%clk 0:03:01.6]} 4... Ba6 {[%clk 0:02:58.1]} 5. b3 {[%clk 0:03:01.8]}
5... Bb4+ {[%clk 0:02:58.1]} 6. Bd2 {[%clk 0:03:02.4]} 6... Be7 {[%clk
0:02:58.1]} 7. Bg2 {[%clk 0:03:03.1]} 7... c6 {[%clk 0:02:57.6]} 8. Bc3 {[%clk
0:03:03.4]} 8... d5 {[%clk 0:02:57.7]} 9. O-O {[%clk 0:02:58.3]} 9... Nbd7
{[%clk 0:02:57.3]} 10. Nbd2 {[%clk 0:02:57.9]} 10... O-O {[%clk 0:02:57]} 11.
Qc2 {[%clk 0:02:53.2]} 11... Rc8 {[%clk 0:02:50.6]} 12. e4 {[%clk 0:02:48.9]}
12... c5 {[%clk 0:02:50.6]} 13. exd5 {[%clk 0:02:45.7]} 13... exd5 {[%clk
0:02:49]} 14. Qf5 {[%clk 0:02:39.7]} 14... dxc4 {[%clk 0:02:26.6]} 15. Nxc4
{[%clk 0:02:39.7]} 15... b5 {[%clk 0:02:13.4]} 16. Ba5 {[%clk 0:02:39.6]} 16...
Nb6 {[%clk 0:02:07.7]} 17. Nce5 {[%clk 0:02:14.8]} 17... c4 {[%clk 0:01:45.8]}
18. bxc4 {[%clk 0:01:48.6]} 18... bxc4 {[%clk 0:01:43.8]} 19. Rfd1 {[%clk
0:01:42.1]} 19... Bb7 {[%clk 0:01:06.8]} 20. Rac1 {[%clk 0:01:34.2]} 20... Be4
{[%clk 0:01:05.3]} 21. Qh3 {[%clk 0:01:26.1]} 21... Qd5 {[%clk 0:01:03.8]} 22.
Bc3 {[%clk 0:00:35.7]} 22... Ba3 {[%clk 0:00:55.6]} 23. Ra1 {[%clk 0:00:14.1]}
23... Na4 {[%clk 0:00:55.8]} 24. Bd2 {[%clk 0:00:09.4]} 24... c3 {[%clk
0:00:51.8]} 25. Bc1 {[%clk 0:00:08.7]} 25... Bb2 {[%clk 0:00:39.7]} 26. Nxf7
{[%clk 0:00:03.5]} 26... Bxf3 {[%clk 0:00:25.8]} 0-1

[Event "*** Titled Tuesday Blitz"]
[Site "Chess.com"]
[Date "2021.03.02"]
[Round "5"]
[White "BahadirOzen"]
[Black "hellokostya"]
[Result "1-0"]
[WhiteElo "2793"]
[BlackElo "2576"]
[TimeControl "180+1"]
[EndTime "10:54:55 PST"]
[Termination "BahadirOzen won by resignation"]

1. g3 {[%clk 0:03:00.9]} 1... Nf6 {[%clk 0:02:58.3]} 2. Bg2 {[%clk 0:03:01.1]}
2... g6 {[%clk 0:02:59]} 3. Nf3 {[%clk 0:02:58.1]} 3... Bg7 {[%clk 0:02:59]} 4.
O-O {[%clk 0:02:58.7]} 4... O-O {[%clk 0:02:59.6]} 5. d4 {[%clk 0:02:58.5]} 5...
d6 {[%clk 0:03:00]} 6. Nbd2 {[%clk 0:02:58.5]} 6... c6 {[%clk 0:02:57]} 7. e4
{[%clk 0:02:54.8]} 7... Nbd7 {[%clk 0:02:55.6]} 8. Re1 {[%clk 0:02:50.7]} 8...
e5 {[%clk 0:02:54.5]} 9. dxe5 {[%clk 0:02:50.4]} 9... dxe5 {[%clk 0:02:53.6]}
10. b3 {[%clk 0:02:49.7]} 10... Qc7 {[%clk 0:02:52.5]} 11. Bb2 {[%clk
0:02:42.2]} 11... Re8 {[%clk 0:02:51.6]} 12. a4 {[%clk 0:02:41]} 12... Nc5
{[%clk 0:02:43.4]} 13. b4 {[%clk 0:02:34.2]} 13... Na6 {[%clk 0:02:38.5]} 14. c3
{[%clk 0:02:29.1]} 14... Be6 {[%clk 0:02:36]} 15. Ng5 {[%clk 0:02:25.1]} 15...
Bg4 {[%clk 0:02:34.3]} 16. Qc2 {[%clk 0:02:22.7]} 16... h6 {[%clk 0:02:34]} 17.
Ngf3 {[%clk 0:02:21.8]} 17... Rad8 {[%clk 0:02:32.8]} 18. h3 {[%clk 0:02:19.3]}
18... Be6 {[%clk 0:02:32.6]} 19. Rad1 {[%clk 0:02:16.3]} 19... Rd7 {[%clk
0:02:17.3]} 20. Bf1 {[%clk 0:01:55.6]} 20... Red8 {[%clk 0:02:13.7]} 21. Ra1
{[%clk 0:01:49.1]} 21... Qb8 {[%clk 0:01:58.3]} 22. Nc4 {[%clk 0:01:42.3]} 22...
Ne8 {[%clk 0:01:54.4]} 23. Rad1 {[%clk 0:01:31.4]} 23... b5 {[%clk 0:01:20.4]}
24. Na5 {[%clk 0:01:29.2]} 24... Qc7 {[%clk 0:01:17.3]} 25. Ba3 {[%clk
0:01:07.6]} 25... Rxd1 {[%clk 0:01:13.3]} 26. Rxd1 {[%clk 0:01:07.6]} 26... Rxd1
{[%clk 0:01:12.1]} 27. Qxd1 {[%clk 0:01:08.5]} 27... Nd6 {[%clk 0:01:04.1]} 28.
Nd2 {[%clk 0:01:02.3]} 28... Nb8 {[%clk 0:00:56.7]} 29. c4 {[%clk 0:00:56.7]}
29... Nd7 {[%clk 0:00:46]} 30. c5 {[%clk 0:00:53.8]} 30... Nb7 {[%clk
0:00:44.6]} 31. Nxb7 {[%clk 0:00:44.7]} 31... Qxb7 {[%clk 0:00:45.5]} 32. a5
{[%clk 0:00:42.4]} 32... a6 {[%clk 0:00:44.6]} 33. Bb2 {[%clk 0:00:42.6]} 33...
Nf8 {[%clk 0:00:41.5]} 34. Nf3 {[%clk 0:00:41.4]} 34... Qc7 {[%clk 0:00:38]} 35.
Kh2 {[%clk 0:00:36.2]} 35... f6 {[%clk 0:00:35]} 36. h4 {[%clk 0:00:35.5]} 36...
Kf7 {[%clk 0:00:34.6]} 37. h5 {[%clk 0:00:26.2]} 37... g5 {[%clk 0:00:34.6]} 38.
Kg2 {[%clk 0:00:21.1]} 38... Bg4 {[%clk 0:00:33.6]} 39. Nxg5+ {[%clk 0:00:19.9]}
39... fxg5 {[%clk 0:00:33]} 40. Qxg4 {[%clk 0:00:20.8]} 40... Ne6 {[%clk
0:00:33.3]} 41. Qf5+ {[%clk 0:00:20.7]} 41... Kg8 {[%clk 0:00:29.3]} 42. Qxe6+
{[%clk 0:00:20.4]} 1-0

[Event "*** Titled Tuesday Blitz"]
[Site "Chess.com"]
[Date "2021.03.02"]
[Round "5"]
[White "Azeryahu"]
[Black "UCantHandleDenker"]
[Result "1-0"]
[WhiteElo "2730"]
[BlackElo "2552"]
[TimeControl "180+1"]
[EndTime "10:54:55 PST"]
[Termination "Azeryahu won on time"]

1. d4 {[%clk 0:03:00.9]} 1... Nf6 {[%clk 0:02:59.4]} 2. c4 {[%clk 0:03:00.5]}
2... c5 {[%clk 0:02:58.8]} 3. d5 {[%clk 0:02:58.1]} 3... d6 {[%clk 0:02:59.3]}
4. Nc3 {[%clk 0:02:57.6]} 4... g6 {[%clk 0:03:00.2]} 5. e4 {[%clk 0:02:56.9]}
5... Bg7 {[%clk 0:03:00.4]} 6. Nf3 {[%clk 0:02:57.3]} 6... O-O {[%clk
0:03:00.3]} 7. h3 {[%clk 0:02:57.6]} 7... e6 {[%clk 0:03:00.4]} 8. Bd3 {[%clk
0:02:52.4]} 8... Na6 {[%clk 0:02:59.2]} 9. O-O {[%clk 0:02:51.7]} 9... Nc7
{[%clk 0:02:59.3]} 10. a4 {[%clk 0:02:46]} 10... Re8 {[%clk 0:02:55.8]} 11. Bg5
{[%clk 0:02:44.5]} 11... h6 {[%clk 0:02:41.9]} 12. Be3 {[%clk 0:02:44.8]} 12...
Na6 {[%clk 0:02:37.8]} 13. Qd2 {[%clk 0:02:37.2]} 13... Nb4 {[%clk 0:02:31.1]}
14. Bb1 {[%clk 0:02:08.3]} 14... exd5 {[%clk 0:02:02.1]} 15. exd5 {[%clk
0:02:07.4]} 15... h5 {[%clk 0:01:52.4]} 16. Bg5 {[%clk 0:02:05]} 16... Qc7
{[%clk 0:01:46.9]} 17. Nb5 {[%clk 0:02:00.5]} 17... Qd7 {[%clk 0:00:58.7]} 18.
Qf4 {[%clk 0:01:59.9]} 18... Nh7 {[%clk 0:00:54.8]} 19. Nxd6 {[%clk 0:01:59.3]}
19... Re2 {[%clk 0:00:50]} 20. Ne4 {[%clk 0:01:40.9]} 20... b6 {[%clk
0:00:37.9]} 21. Nf6+ {[%clk 0:01:34.7]} 21... Nxf6 {[%clk 0:00:36]} 22. Bxf6
{[%clk 0:01:35.6]} 22... Ba6 {[%clk 0:00:20]} 23. b3 {[%clk 0:00:28.5]} 23...
Rae8 {[%clk 0:00:18.4]} 24. Ng5 {[%clk 0:00:28.7]} 24... Re1 {[%clk 0:00:09]}
25. Be4 {[%clk 0:00:26.5]} 25... Re2 {[%clk 0:00:05.1]} 26. Bf3 {[%clk
0:00:20.8]} 26... Rc2 {[%clk 0:00:02.6]} 27. Ne4 {[%clk 0:00:20.4]} 1-0